[Event "Late-Titled-Tuesday-Blitz-November-28-2023"]
[Site "Chess.com"]
[Date "2023.11.28"]
[Round "2"]
[White "AEMEffi"]
[Black "Sic_Transit_GM"]
[Result "0-1"]
[WhiteElo "2351"]
[BlackElo "2695"]
[TimeControl "180+1"]
[EndTime "14:14:52 PST"]
[Termination "Sic_Transit_GM won by resignation"]

1. d4 {[%clk 0:02:53.3]} 1... g6 {[%clk 0:03:00.9]} 2. c4 {[%clk 0:02:52.7]}
2... Bg7 {[%clk 0:03:00.8]} 3. Nc3 {[%clk 0:02:51.3]} 3... Nf6 {[%clk 0:03:01]}
4. e4 {[%clk 0:02:51]} 4... O-O {[%clk 0:03:01.9]} 5. h3 {[%clk 0:02:50.2]} 5...
d6 {[%clk 0:03:02.2]} 6. Be3 {[%clk 0:02:47.6]} 6... a6 {[%clk 0:03:02.1]} 7.
Nf3 {[%clk 0:02:47.3]} 7... Nbd7 {[%clk 0:03:02.1]} 8. Rc1 {[%clk 0:02:44.8]}
8... c5 {[%clk 0:02:59.6]} 9. d5 {[%clk 0:02:44.1]} 9... b5 {[%clk 0:02:56.8]}
10. cxb5 {[%clk 0:02:36.4]} 10... axb5 {[%clk 0:02:57.7]} 11. Bxb5 {[%clk
0:02:28.4]} 11... Nxe4 {[%clk 0:02:56.2]} 12. a4 {[%clk 0:01:54.2]} 12... Nxc3
{[%clk 0:02:49.1]} 13. bxc3 {[%clk 0:01:55.1]} 13... Ba6 {[%clk 0:02:39.3]} 14.
c4 {[%clk 0:01:52.4]} 14... Bxb5 {[%clk 0:02:35.5]} 15. axb5 {[%clk 0:01:53.3]}
15... Qa5+ {[%clk 0:02:31.6]} 16. Bd2 {[%clk 0:01:51.1]} 16... Qa2 {[%clk
0:02:31.1]} 17. O-O {[%clk 0:01:51.2]} 17... Nb6 {[%clk 0:02:30.8]} 18. Qe2
{[%clk 0:01:40.5]} 18... Bf6 {[%clk 0:02:26.6]} 19. Qe4 {[%clk 0:01:19.7]} 19...
Ra4 {[%clk 0:02:24.5]} 20. Rc2 {[%clk 0:01:06.9]} 20... Rxc4 {[%clk 0:02:17.8]}
21. Rxa2 {[%clk 0:01:03]} 21... Rxe4 {[%clk 0:02:17.3]} 22. Ra6 {[%clk
0:01:00.9]} 22... Nxd5 {[%clk 0:02:17]} 23. b6 {[%clk 0:00:56.9]} 23... Rb8
{[%clk 0:02:16.4]} 24. Rb1 {[%clk 0:00:57]} 24... Nb4 {[%clk 0:01:41.5]} 25.
Bxb4 {[%clk 0:00:44.3]} 25... Rxb4 {[%clk 0:01:42.4]} 26. Rxb4 {[%clk
0:00:42.2]} 26... cxb4 {[%clk 0:01:43.3]} 27. Nd2 {[%clk 0:00:31.2]} 27... Bd4
{[%clk 0:01:42.1]} 28. Nc4 {[%clk 0:00:22.2]} 28... b3 {[%clk 0:01:42.1]} 29.
Ra3 {[%clk 0:00:22.3]} 29... Bxb6 {[%clk 0:01:40]} 30. Rxb3 {[%clk 0:00:22.2]}
30... Bxf2+ {[%clk 0:01:40]} 0-1

[Event "Late-Titled-Tuesday-Blitz-November-28-2023"]
[Site "Chess.com"]
[Date "2023.11.28"]
[Round "2"]
[White "Squirlolz"]
[Black "HanSchut"]
[Result "0-1"]
[WhiteElo "2584"]
[BlackElo "2295"]
[TimeControl "180+1"]
[EndTime "14:14:56 PST"]
[Termination "HanSchut won by resignation"]

1. d4 {[%clk 0:03:00.9]} 1... Nf6 {[%clk 0:02:59.7]} 2. Bf4 {[%clk 0:03:00.6]}
2... d5 {[%clk 0:03:00]} 3. e3 {[%clk 0:03:00.8]} 3... e6 {[%clk 0:03:00.3]} 4.
Bd3 {[%clk 0:03:00.8]} 4... Bd6 {[%clk 0:03:00.7]} 5. Nf3 {[%clk 0:03:01.1]}
5... b6 {[%clk 0:03:00.4]} 6. Qe2 {[%clk 0:03:00.2]} 6... Bb7 {[%clk 0:02:58.4]}
7. Nbd2 {[%clk 0:02:59.3]} 7... Ne4 {[%clk 0:02:58.8]} 8. O-O {[%clk 0:02:55.2]}
8... O-O {[%clk 0:02:57.2]} 9. c4 {[%clk 0:02:42.4]} 9... Bxf4 {[%clk
0:02:38.1]} 10. exf4 {[%clk 0:02:39.4]} 10... Nxd2 {[%clk 0:02:34.7]} 11. Nxd2
{[%clk 0:02:23.1]} 11... dxc4 {[%clk 0:02:34.6]} 12. Nxc4 {[%clk 0:02:24]} 12...
Qxd4 {[%clk 0:02:26.3]} 13. Rad1 {[%clk 0:01:48.3]} 13... Qxf4 {[%clk
0:02:25.6]} 14. Rfe1 {[%clk 0:01:47.3]} 14... Nc6 {[%clk 0:02:20.5]} 15. Be4
{[%clk 0:01:42.9]} 15... Rad8 {[%clk 0:02:03.8]} 16. g3 {[%clk 0:01:38.4]} 16...
Qf6 {[%clk 0:01:57.9]} 17. Qe3 {[%clk 0:01:29.8]} 17... Rxd1 {[%clk 0:01:54.3]}
18. Rxd1 {[%clk 0:01:30.7]} 18... Rd8 {[%clk 0:01:54.4]} 19. Rxd8+ {[%clk
0:01:12.4]} 19... Qxd8 {[%clk 0:01:45.9]} 20. Qf3 {[%clk 0:01:02.8]} 20... Nd4
{[%clk 0:01:45.6]} 21. Bxh7+ {[%clk 0:01:02.9]} 21... Kxh7 {[%clk 0:01:40.9]}
22. Qxb7 {[%clk 0:01:03.8]} 22... Qd5 {[%clk 0:01:25.4]} 23. Qxc7 {[%clk
0:00:35.4]} 23... Nf3+ {[%clk 0:01:22.7]} 24. Kf1 {[%clk 0:00:35.8]} 24... Qxc4+
{[%clk 0:01:20.2]} 25. Qxc4 {[%clk 0:00:26.5]} 25... Nd2+ {[%clk 0:01:20]} 0-1

[Event "Late-Titled-Tuesday-Blitz-November-28-2023"]
[Site "Chess.com"]
[Date "2023.11.28"]
[Round "2"]
[White "vladgoncharov"]
[Black "AsaHoffmann"]
[Result "1-0"]
[WhiteElo "2621"]
[BlackElo "2341"]
[TimeControl "180+1"]
[EndTime "14:14:59 PST"]
[Termination "vladgoncharov won by resignation"]

1. d4 {[%clk 0:03:00.9]} 1... Nf6 {[%clk 0:02:59.1]} 2. c4 {[%clk 0:03:00.3]}
2... c5 {[%clk 0:02:55.9]} 3. d5 {[%clk 0:02:59.1]} 3... e5 {[%clk 0:02:55.6]}
4. Nc3 {[%clk 0:02:58.3]} 4... d6 {[%clk 0:02:42.7]} 5. g3 {[%clk 0:02:56.8]}
5... Be7 {[%clk 0:02:42]} 6. Bg2 {[%clk 0:02:56.5]} 6... O-O {[%clk 0:02:40.4]}
7. Nf3 {[%clk 0:02:53.3]} 7... Ne8 {[%clk 0:02:38.1]} 8. O-O {[%clk 0:02:52.3]}
8... f5 {[%clk 0:02:37.5]} 9. e4 {[%clk 0:02:47.8]} 9... Nf6 {[%clk 0:02:30.2]}
10. exf5 {[%clk 0:02:47.7]} 10... Bxf5 {[%clk 0:02:29.5]} 11. Nd2 {[%clk
0:02:48.1]} 11... Qd7 {[%clk 0:02:28.6]} 12. Nde4 {[%clk 0:02:47.1]} 12... Bh3
{[%clk 0:02:25.3]} 13. Nxf6+ {[%clk 0:02:35.4]} 13... Bxf6 {[%clk 0:02:23.8]}
14. Ne4 {[%clk 0:02:35.4]} 14... Bxg2 {[%clk 0:02:19.5]} 15. Kxg2 {[%clk
0:02:34.9]} 15... Qe7 {[%clk 0:02:16.9]} 16. Qb3 {[%clk 0:02:30.5]} 16... b6
{[%clk 0:02:16.3]} 17. Be3 {[%clk 0:02:23.3]} 17... Nd7 {[%clk 0:02:15.8]} 18.
Qd3 {[%clk 0:02:20.5]} 18... a6 {[%clk 0:02:11.2]} 19. a3 {[%clk 0:02:16.4]}
19... Rab8 {[%clk 0:02:10.8]} 20. b4 {[%clk 0:02:15.6]} 20... h6 {[%clk
0:02:07.2]} 21. bxc5 {[%clk 0:02:09]} 21... bxc5 {[%clk 0:02:04.9]} 22. Rab1
{[%clk 0:02:08.5]} 22... Bg5 {[%clk 0:02:03.6]} 23. Bxg5 {[%clk 0:02:02.2]}
23... hxg5 {[%clk 0:01:56.3]} 24. h3 {[%clk 0:02:01.6]} 24... Nf6 {[%clk
0:01:39.1]} 25. Nxg5 {[%clk 0:01:58.3]} 25... e4 {[%clk 0:01:37.3]} 26. Qe3
{[%clk 0:01:57.5]} 26... Qe5 {[%clk 0:01:31]} 27. Ne6 {[%clk 0:01:51.7]} 27...
Rfe8 {[%clk 0:01:26.5]} 28. Rfe1 {[%clk 0:01:38.5]} 28... Rxb1 {[%clk
0:01:20.1]} 29. Rxb1 {[%clk 0:01:37.5]} 29... Rxe6 {[%clk 0:01:20]} 30. dxe6
{[%clk 0:01:37]} 30... Qxe6 {[%clk 0:01:20.1]} 31. Qf4 {[%clk 0:01:30.6]} 31...
Qxc4 {[%clk 0:01:11.1]} 32. Qxd6 {[%clk 0:01:27.8]} 32... Qd3 {[%clk 0:01:09.8]}
33. Qe6+ {[%clk 0:01:24.5]} 33... Kh7 {[%clk 0:01:09]} 34. Qf5+ {[%clk
0:01:22.4]} 34... Kh6 {[%clk 0:01:07.6]} 35. Rb8 {[%clk 0:01:19.7]} 1-0

[Event "Late-Titled-Tuesday-Blitz-November-28-2023"]
[Site "Chess.com"]
[Date "2023.11.28"]
[Round "2"]
[White "Aradhya2000"]
[Black "Goffredo_Fofi"]
[Result "1-0"]
[WhiteElo "2719"]
[BlackElo "2505"]
[TimeControl "180+1"]
[EndTime "14:15:09 PST"]
[Termination "Aradhya2000 won by resignation"]

1. d4 {[%clk 0:03:00.9]} 1... g6 {[%clk 0:03:00.9]} 2. c4 {[%clk 0:02:59.9]}
2... Bg7 {[%clk 0:03:01.3]} 3. Nf3 {[%clk 0:03:00.5]} 3... d6 {[%clk 0:02:57.7]}
4. Nc3 {[%clk 0:03:00.4]} 4... Nf6 {[%clk 0:02:57.1]} 5. g3 {[%clk 0:03:00.1]}
5... O-O {[%clk 0:02:54.4]} 6. Bg2 {[%clk 0:03:00.5]} 6... Nc6 {[%clk
0:02:55.1]} 7. O-O {[%clk 0:03:00.6]} 7... a6 {[%clk 0:02:55.2]} 8. b3 {[%clk
0:03:00.3]} 8... Rb8 {[%clk 0:02:55.2]} 9. d5 {[%clk 0:03:00.8]} 9... Na5 {[%clk
0:02:52.1]} 10. Bg5 {[%clk 0:03:00.6]} 10... c5 {[%clk 0:02:50.3]} 11. dxc6
{[%clk 0:03:00.5]} 11... Nxc6 {[%clk 0:02:50.6]} 12. Rc1 {[%clk 0:03:00.4]}
12... Bf5 {[%clk 0:02:50.2]} 13. Qd2 {[%clk 0:02:59.4]} 13... Ne4 {[%clk
0:02:48.4]} 14. Nxe4 {[%clk 0:02:58]} 14... Bxe4 {[%clk 0:02:49.3]} 15. Qe3
{[%clk 0:02:52.5]} 15... Bxf3 {[%clk 0:02:37.9]} 16. Bxf3 {[%clk 0:02:50.9]}
16... Re8 {[%clk 0:02:37.8]} 17. Rfd1 {[%clk 0:02:48.2]} 17... Qa5 {[%clk
0:02:29.5]} 18. Qd2 {[%clk 0:02:48.3]} 18... Qxd2 {[%clk 0:02:19.4]} 19. Rxd2
{[%clk 0:02:47.8]} 19... Nd4 {[%clk 0:02:08.4]} 20. Bg2 {[%clk 0:02:47.9]} 20...
Ne6 {[%clk 0:01:55.4]} 21. Be3 {[%clk 0:02:47.2]} 21... b5 {[%clk 0:01:38.7]}
22. cxb5 {[%clk 0:02:46.7]} 22... axb5 {[%clk 0:01:39.6]} 23. h4 {[%clk
0:02:36.9]} 23... b4 {[%clk 0:01:36.9]} 24. h5 {[%clk 0:02:36.6]} 24... Bc3
{[%clk 0:01:35.6]} 25. Rdc2 {[%clk 0:02:36.6]} 25... Nc5 {[%clk 0:01:29.4]} 26.
h6 {[%clk 0:02:33.3]} 26... Kf8 {[%clk 0:01:25.7]} 27. Bxc5 {[%clk 0:02:32.1]}
27... dxc5 {[%clk 0:01:25.6]} 28. a4 {[%clk 0:02:32.1]} 28... Rb6 {[%clk
0:01:17]} 29. a5 {[%clk 0:02:24.9]} 29... Ra6 {[%clk 0:01:16.5]} 30. Ra2 {[%clk
0:02:25.5]} 30... Rb8 {[%clk 0:01:12.4]} 31. Rd1 {[%clk 0:02:24.5]} 31... c4
{[%clk 0:00:56.5]} 32. Bd5 {[%clk 0:02:21.8]} 32... cxb3 {[%clk 0:00:55.2]} 33.
Bxb3 {[%clk 0:02:21.8]} 33... Rd6 {[%clk 0:00:30.5]} 34. Rxd6 {[%clk 0:02:20.6]}
34... exd6 {[%clk 0:00:31.4]} 35. a6 {[%clk 0:02:20.7]} 35... Ra8 {[%clk
0:00:31.7]} 36. e3 {[%clk 0:02:10.3]} 36... Ra7 {[%clk 0:00:32.1]} 37. Kf1
{[%clk 0:02:06.7]} 37... Ke8 {[%clk 0:00:30.2]} 38. Ke2 {[%clk 0:02:07.2]} 38...
Bf6 {[%clk 0:00:28.2]} 39. Kd3 {[%clk 0:02:05.8]} 39... Bg5 {[%clk 0:00:27.6]}
40. Kc4 {[%clk 0:02:03.8]} 40... Bxh6 {[%clk 0:00:26.6]} 41. Kb5 {[%clk
0:02:03.6]} 1-0

[Event "Late-Titled-Tuesday-Blitz-November-28-2023"]
[Site "Chess.com"]
[Date "2023.11.28"]
[Round "2"]
[White "Mikasinski"]
[Black "el_sporco"]
[Result "1-0"]
[WhiteElo "2706"]
[BlackElo "2453"]
[TimeControl "180+1"]
[EndTime "14:15:10 PST"]
[Termination "Mikasinski won by resignation"]

1. e4 {[%clk 0:03:00.9]} 1... c5 {[%clk 0:02:59.6]} 2. Nf3 {[%clk 0:03:01.3]}
2... d6 {[%clk 0:03:00]} 3. d4 {[%clk 0:03:01.7]} 3... cxd4 {[%clk 0:03:00.9]}
4. Nxd4 {[%clk 0:03:02.3]} 4... Nf6 {[%clk 0:03:01.5]} 5. Nc3 {[%clk 0:03:02.8]}
5... a6 {[%clk 0:03:02.1]} 6. Rg1 {[%clk 0:03:03.2]} 6... e5 {[%clk 0:03:01.1]}
7. Nb3 {[%clk 0:03:03.7]} 7... h5 {[%clk 0:02:54.8]} 8. h3 {[%clk 0:03:03.5]}
8... h4 {[%clk 0:02:54.6]} 9. Be3 {[%clk 0:03:03.6]} 9... Be6 {[%clk 0:02:53.9]}
10. Qf3 {[%clk 0:03:03.9]} 10... Nbd7 {[%clk 0:02:53.4]} 11. O-O-O {[%clk
0:03:03.9]} 11... Rc8 {[%clk 0:02:53.2]} 12. Kb1 {[%clk 0:03:02.4]} 12... b5
{[%clk 0:02:51]} 13. Nd5 {[%clk 0:02:58.4]} 13... Bxd5 {[%clk 0:02:50.1]} 14.
exd5 {[%clk 0:02:58.9]} 14... Nb6 {[%clk 0:02:46]} 15. g4 {[%clk 0:02:57.9]}
15... hxg3 {[%clk 0:02:43.4]} 16. fxg3 {[%clk 0:02:54.4]} 16... Qc7 {[%clk
0:02:34.2]} 17. Bxb6 {[%clk 0:02:35.6]} 17... Qxb6 {[%clk 0:02:35.1]} 18. Bd3
{[%clk 0:02:35.6]} 18... a5 {[%clk 0:02:27.2]} 19. g4 {[%clk 0:02:30.2]} 19...
a4 {[%clk 0:02:27.2]} 20. Nd2 {[%clk 0:02:29.1]} 20... Qb7 {[%clk 0:02:13.7]}
21. g5 {[%clk 0:02:27.3]} 21... Nd7 {[%clk 0:02:10.8]} 22. Rdf1 {[%clk 0:02:23]}
22... f6 {[%clk 0:02:09.1]} 23. gxf6 {[%clk 0:02:19.7]} 23... Nxf6 {[%clk
0:02:09]} 24. Qf5 {[%clk 0:02:17.7]} 24... Rc7 {[%clk 0:01:57.5]} 25. Qe6+
{[%clk 0:02:15.3]} 25... Kd8 {[%clk 0:01:55.7]} 26. Rxf6 {[%clk 0:02:14.2]}
26... Qb6 {[%clk 0:01:45.9]} 27. Rgf1 {[%clk 0:01:49.5]} 27... Be7 {[%clk
0:01:45.3]} 28. Rf7 {[%clk 0:01:38.4]} 28... a3 {[%clk 0:01:45.2]} 29. Bf5
{[%clk 0:01:33.9]} 29... Qd4 {[%clk 0:01:39.2]} 30. bxa3 {[%clk 0:01:14.8]}
30... Rh6 {[%clk 0:01:13.5]} 31. Bg6 {[%clk 0:01:01.1]} 31... Rh8 {[%clk
0:00:50.5]} 32. Rf8+ {[%clk 0:00:59.7]} 1-0

[Event "Late-Titled-Tuesday-Blitz-November-28-2023"]
[Site "Chess.com"]
[Date "2023.11.28"]
[Round "2"]
[White "ChessSwole"]
[Black "egnfanclub"]
[Result "1-0"]
[WhiteElo "2677"]
[BlackElo "2339"]
[TimeControl "180+1"]
[EndTime "14:15:16 PST"]
[Termination "ChessSwole won by resignation"]

1. e4 {[%clk 0:03:00.9]} 1... e5 {[%clk 0:02:59.2]} 2. Nf3 {[%clk 0:02:59.8]}
2... Nc6 {[%clk 0:02:59.5]} 3. Bb5 {[%clk 0:02:59.8]} 3... a6 {[%clk 0:02:59.3]}
4. Ba4 {[%clk 0:03:00.1]} 4... d6 {[%clk 0:02:59.5]} 5. O-O {[%clk 0:02:57.3]}
5... Bg4 {[%clk 0:02:58.8]} 6. Bxc6+ {[%clk 0:02:45.6]} 6... bxc6 {[%clk
0:02:58.3]} 7. d4 {[%clk 0:02:46]} 7... Bxf3 {[%clk 0:02:20.2]} 8. Qxf3 {[%clk
0:02:42.5]} 8... Qf6 {[%clk 0:02:20]} 9. Qc3 {[%clk 0:02:37]} 9... Ne7 {[%clk
0:02:18.6]} 10. dxe5 {[%clk 0:02:36.5]} 10... Qxe5 {[%clk 0:02:16.8]} 11. Qxe5
{[%clk 0:02:35.6]} 11... dxe5 {[%clk 0:02:17.7]} 12. Nd2 {[%clk 0:02:34]} 12...
Ng6 {[%clk 0:02:16.3]} 13. Nc4 {[%clk 0:02:32.4]} 13... Bd6 {[%clk 0:02:13.8]}
14. Rd1 {[%clk 0:02:30.5]} 14... Ke7 {[%clk 0:02:13.6]} 15. Be3 {[%clk
0:02:24.8]} 15... Ke6 {[%clk 0:01:52.8]} 16. Rd3 {[%clk 0:02:17.9]} 16... Rhd8
{[%clk 0:01:27]} 17. Rad1 {[%clk 0:02:15.1]} 17... Be7 {[%clk 0:01:22.9]} 18.
Na5 {[%clk 0:02:13.8]} 18... Rxd3 {[%clk 0:01:20.7]} 19. Rxd3 {[%clk 0:02:14.7]}
19... c5 {[%clk 0:01:19.4]} 20. b3 {[%clk 0:02:09.3]} 20... Nf4 {[%clk
0:01:12.6]} 21. Rd2 {[%clk 0:01:59.9]} 21... Bd6 {[%clk 0:00:42.9]} 22. g3
{[%clk 0:01:56.5]} 22... Ng6 {[%clk 0:00:41]} 23. Kg2 {[%clk 0:01:45.7]} 23...
Ne7 {[%clk 0:00:36.4]} 24. Rd3 {[%clk 0:01:42.8]} 24... g6 {[%clk 0:00:31.1]}
25. Rc3 {[%clk 0:01:40.7]} 25... f5 {[%clk 0:00:31.5]} 26. f3 {[%clk 0:01:34.5]}
26... Rd8 {[%clk 0:00:23.3]} 27. Nb7 {[%clk 0:01:28.7]} 27... Rd7 {[%clk
0:00:23]} 28. Nxc5+ {[%clk 0:01:22.1]} 28... Bxc5 {[%clk 0:00:22.8]} 29. Rxc5
{[%clk 0:01:23]} 29... fxe4 {[%clk 0:00:18.4]} 30. fxe4 {[%clk 0:01:22.9]} 30...
Nc8 {[%clk 0:00:15]} 31. Rc6+ {[%clk 0:01:22.6]} 31... Rd6 {[%clk 0:00:15.4]}
32. Rxc7 {[%clk 0:01:22.9]} 1-0

[Event "Late-Titled-Tuesday-Blitz-November-28-2023"]
[Site "Chess.com"]
[Date "2023.11.28"]
[Round "2"]
[White "AryanTari"]
[Black "dcremisi"]
[Result "1-0"]
[WhiteElo "2975"]
[BlackElo "2577"]
[TimeControl "180+1"]
[EndTime "14:15:22 PST"]
[Termination "AryanTari won by checkmate"]

1. Nf3 {[%clk 0:03:00.9]} 1... Nf6 {[%clk 0:02:59.9]} 2. d3 {[%clk 0:02:54.4]}
2... b6 {[%clk 0:02:59.8]} 3. e4 {[%clk 0:02:54.2]} 3... Bb7 {[%clk 0:02:59.8]}
4. e5 {[%clk 0:02:51]} 4... Nd5 {[%clk 0:02:57.9]} 5. c4 {[%clk 0:02:50.8]} 5...
Nb4 {[%clk 0:02:58]} 6. a3 {[%clk 0:02:44.6]} 6... N4c6 {[%clk 0:02:57.9]} 7. d4
{[%clk 0:02:44.8]} 7... e6 {[%clk 0:02:55.1]} 8. d5 {[%clk 0:02:43.3]} 8... Ne7
{[%clk 0:02:52]} 9. Nc3 {[%clk 0:02:43]} 9... Ng6 {[%clk 0:02:48.9]} 10. h4
{[%clk 0:02:41.9]} 10... h5 {[%clk 0:02:17.2]} 11. Bd3 {[%clk 0:02:41.3]} 11...
Ne7 {[%clk 0:02:15.1]} 12. Bg5 {[%clk 0:02:40.2]} 12... Qc8 {[%clk 0:02:14]} 13.
d6 {[%clk 0:02:29.6]} 13... Nec6 {[%clk 0:02:12.6]} 14. Nb5 {[%clk 0:02:26.4]}
14... cxd6 {[%clk 0:02:06]} 15. exd6 {[%clk 0:02:26.3]} 15... Na6 {[%clk
0:02:06]} 16. b4 {[%clk 0:02:24.9]} 16... f6 {[%clk 0:01:29]} 17. Bg6+ {[%clk
0:02:22.6]} 17... Kd8 {[%clk 0:01:29.3]} 18. Qd2 {[%clk 0:02:16.6]} 18... Ncxb4
{[%clk 0:01:17.7]} 19. Ne5 {[%clk 0:01:44.8]} 19... Qc5 {[%clk 0:01:01.7]} 20.
Nf7+ {[%clk 0:01:44.8]} 20... Kc8 {[%clk 0:01:01.8]} 21. axb4 {[%clk 0:01:45.4]}
21... Nxb4 {[%clk 0:00:58.5]} 22. Be3 {[%clk 0:01:43.2]} 22... Qc6 {[%clk
0:00:50.1]} 23. Qxb4 {[%clk 0:01:42.9]} 23... Qxg2 {[%clk 0:00:46.6]} 24. Nxa7+
{[%clk 0:01:27.5]} 24... Rxa7 {[%clk 0:00:45]} 25. Rxa7 {[%clk 0:01:18]} 25...
Qxh1+ {[%clk 0:00:38.4]} 26. Kd2 {[%clk 0:01:18.2]} 26... Rg8 {[%clk 0:00:11.6]}
27. Qxb6 {[%clk 0:01:16.7]} 27... Qc6 {[%clk 0:00:07.9]} 28. Qd8# {[%clk
0:01:16.3]} 1-0

[Event "Late-Titled-Tuesday-Blitz-November-28-2023"]
[Site "Chess.com"]
[Date "2023.11.28"]
[Round "2"]
[White "Ellaijio_B"]
[Black "zverr1"]
[Result "1-0"]
[WhiteElo "2784"]
[BlackElo "2523"]
[TimeControl "180+1"]
[EndTime "14:15:36 PST"]
[Termination "Ellaijio_B won on time"]

1. e4 {[%clk 0:02:59.4]} 1... c5 {[%clk 0:02:59.8]} 2. Nf3 {[%clk 0:02:58.8]}
2... g6 {[%clk 0:02:59.9]} 3. d4 {[%clk 0:02:59.1]} 3... cxd4 {[%clk 0:03:00.8]}
4. Nxd4 {[%clk 0:02:57.7]} 4... Nc6 {[%clk 0:03:00.9]} 5. Nc3 {[%clk 0:02:57.4]}
5... Bg7 {[%clk 0:03:01]} 6. Be3 {[%clk 0:02:58]} 6... Nf6 {[%clk 0:03:01.6]} 7.
Bc4 {[%clk 0:02:57.2]} 7... Qa5 {[%clk 0:03:01.1]} 8. O-O {[%clk 0:02:56.4]}
8... O-O {[%clk 0:03:01.1]} 9. Bb3 {[%clk 0:02:55.5]} 9... d6 {[%clk 0:03:00.7]}
10. h3 {[%clk 0:02:54.9]} 10... Bd7 {[%clk 0:02:53.5]} 11. Re1 {[%clk 0:02:55]}
11... Rac8 {[%clk 0:02:40.8]} 12. Nf3 {[%clk 0:02:54.5]} 12... Qd8 {[%clk
0:02:30.3]} 13. Qd2 {[%clk 0:02:51.2]} 13... a6 {[%clk 0:02:27.1]} 14. Bh6
{[%clk 0:02:49.1]} 14... Na5 {[%clk 0:02:25.6]} 15. Bxg7 {[%clk 0:02:46.4]}
15... Kxg7 {[%clk 0:02:26.5]} 16. Rad1 {[%clk 0:02:44.3]} 16... Nxb3 {[%clk
0:02:17.7]} 17. axb3 {[%clk 0:02:45.2]} 17... Qa5 {[%clk 0:02:09.5]} 18. e5
{[%clk 0:02:40.7]} 18... dxe5 {[%clk 0:02:07.2]} 19. Nxe5 {[%clk 0:02:41.3]}
19... Be6 {[%clk 0:01:54.4]} 20. Qg5 {[%clk 0:02:13]} 20... Rfd8 {[%clk
0:01:41.4]} 21. Rxd8 {[%clk 0:02:08.1]} 21... Rxd8 {[%clk 0:01:42.3]} 22. Nxf7
{[%clk 0:01:58.7]} 22... Rd5 {[%clk 0:01:09.6]} 23. Ne5 {[%clk 0:01:47.4]} 23...
Bf7 {[%clk 0:00:21.1]} 24. Qe3 {[%clk 0:01:43]} 24... Qc7 {[%clk 0:00:04]} 25.
Nxf7 {[%clk 0:01:36.7]} 25... Kxf7 {[%clk 0:00:03.4]} 26. Nxd5 {[%clk
0:01:36.1]} 26... Nxd5 {[%clk 0:00:03]} 27. Qe6+ {[%clk 0:01:36.7]} 27... Kg7
{[%clk 0:00:03.2]} 28. Qxd5 {[%clk 0:01:37.4]} 28... Qxc2 {[%clk 0:00:03.3]} 29.
Rxe7+ {[%clk 0:01:33.3]} 29... Kh6 {[%clk 0:00:03.7]} 30. Re1 {[%clk 0:01:28.7]}
30... Qxb2 {[%clk 0:00:02.7]} 31. Qxb7 {[%clk 0:01:28.7]} 31... a5 {[%clk
0:00:01.9]} 32. Qd5 {[%clk 0:01:23.6]} 1-0

[Event "Late-Titled-Tuesday-Blitz-November-28-2023"]
[Site "Chess.com"]
[Date "2023.11.28"]
[Round "2"]
[White "eljanov"]
[Black "qeeqer"]
[Result "1-0"]
[WhiteElo "2872"]
[BlackElo "2542"]
[TimeControl "180+1"]
[EndTime "14:15:37 PST"]
[Termination "eljanov won on time"]

1. d4 {[%clk 0:03:00.9]} 1... e6 {[%clk 0:02:59.4]} 2. Nf3 {[%clk 0:02:59.6]}
2... b6 {[%clk 0:02:52.3]} 3. e4 {[%clk 0:02:58.9]} 3... Bb7 {[%clk 0:02:52.8]}
4. Bd3 {[%clk 0:02:58.6]} 4... Nf6 {[%clk 0:02:53.2]} 5. Qe2 {[%clk 0:02:57.7]}
5... Be7 {[%clk 0:02:42.9]} 6. O-O {[%clk 0:02:55.4]} 6... c5 {[%clk 0:02:42.9]}
7. c3 {[%clk 0:02:54.9]} 7... O-O {[%clk 0:02:34.8]} 8. a3 {[%clk 0:02:50.3]}
8... cxd4 {[%clk 0:02:33.3]} 9. cxd4 {[%clk 0:02:50.2]} 9... Nc6 {[%clk
0:02:29.8]} 10. Nc3 {[%clk 0:02:48.7]} 10... Rc8 {[%clk 0:02:20.2]} 11. e5
{[%clk 0:02:45.8]} 11... Ne8 {[%clk 0:02:17.4]} 12. Re1 {[%clk 0:02:31.2]} 12...
d6 {[%clk 0:01:37.6]} 13. Bf4 {[%clk 0:02:28.4]} 13... dxe5 {[%clk 0:01:28.4]}
14. dxe5 {[%clk 0:02:26.7]} 14... Nd4 {[%clk 0:01:25.4]} 15. Nxd4 {[%clk
0:02:21.5]} 15... Qxd4 {[%clk 0:01:26.3]} 16. Bg3 {[%clk 0:02:13]} 16... g6
{[%clk 0:00:59.4]} 17. Rad1 {[%clk 0:02:06.8]} 17... Qc5 {[%clk 0:00:36]} 18.
Be4 {[%clk 0:02:06.8]} 18... Bxe4 {[%clk 0:00:28.1]} 19. Nxe4 {[%clk 0:02:07.1]}
19... Qc6 {[%clk 0:00:26.4]} 20. Bf4 {[%clk 0:01:59.1]} 20... Nc7 {[%clk
0:00:20.8]} 21. Bg5 {[%clk 0:01:27.5]} 21... Bxg5 {[%clk 0:00:16.3]} 22. Nxg5
{[%clk 0:01:28.4]} 22... Nd5 {[%clk 0:00:15.9]} 23. Ne4 {[%clk 0:01:27.3]} 23...
Qc2 {[%clk 0:00:15.2]} 24. Rd2 {[%clk 0:01:24.1]} 24... Qc4 {[%clk 0:00:14.3]}
25. Qg4 {[%clk 0:01:22.1]} 25... h5 {[%clk 0:00:12.7]} 26. Qf3 {[%clk
0:01:12.2]} 26... Rc6 {[%clk 0:00:04.4]} 27. h4 {[%clk 0:01:07.9]} 27... Rfc8
{[%clk 0:00:02.2]} 28. g3 {[%clk 0:01:06.9]} 1-0